[Event "Titled Tuesday Blitz April 11 Early 2023"]
[White "Liyanage, Ranindu Dilshan"]
[Black "Filgueira, Hernan"]
[WhiteFideId "9915834"]
[BlackFideId "101770"]
[WhiteElo "2199"]
[BlackElo "2363"]
[Result "1-0"]
[Round "07"]
[TimeControl "180+2"]
[Date "2023.04.11"]
[WhiteClock "0:00:11"]
[BlackClock "0:00:16"]

1. e4 {[%clk 0:02:52]}  d6 {[%clk 0:02:59]} 2. d4 {[%clk 0:02:51]}  Nf6 {[%clk 0:02:59]} 3. Nc3 {[%clk 0:02:52]}  Nbd7 {[%clk 0:02:58]} 4. Nf3 {[%clk 0:02:48]}  e5 {[%clk 0:02:58]} 5. Bc4 {[%clk 0:02:47]}  Be7 {[%clk 0:02:58]} 6. a4 {[%clk 0:02:46]}  O-O {[%clk 0:02:57]} 7. O-O {[%clk 0:02:46]}  c6 {[%clk 0:02:56]} 8. Ba2 {[%clk 0:02:46]}  a5 {[%clk 0:02:56]} 9. h3 {[%clk 0:02:45]}  h6 {[%clk 0:02:53]} 10. Re1 {[%clk 0:02:42]}  exd4 {[%clk 0:02:51]} 11. Nxd4 {[%clk 0:02:40]}  Nc5 {[%clk 0:02:47]} 12. Qf3 {[%clk 0:02:37]}  Ne6 {[%clk 0:02:41]} 13. Nf5 {[%clk 0:02:32]}  Ng5 {[%clk 0:02:30]} 14. Bxg5 {[%clk 0:02:27]}  hxg5 {[%clk 0:02:30]} 15. Rad1 {[%clk 0:02:27]}  Bxf5 {[%clk 0:02:03]} 16. Qxf5 {[%clk 0:02:15]}  Nd7 {[%clk 0:02:02]} 17. e5 {[%clk 0:02:07]}  d5 {[%clk 0:01:59]} 18. Nxd5 {[%clk 0:01:59]}  cxd5 {[%clk 0:01:50]} 19. Rxd5 {[%clk 0:01:59]}  Qb6 {[%clk 0:01:29]} 20. Rxd7 {[%clk 0:01:56]}  Rae8 {[%clk 0:01:21]} 21. Bb3 {[%clk 0:01:51]}  Qb4 {[%clk 0:01:04]} 22. Re4 {[%clk 0:01:43]}  Qb6 {[%clk 0:01:01]} 23. Rg4 {[%clk 0:01:37]}  g6 {[%clk 0:01:00]} 24. Qe4 {[%clk 0:01:24]}  Kg7 {[%clk 0:00:58]} 25. Rxb7 {[%clk 0:01:18]}  Qc5 {[%clk 0:00:58]} 26. Rg3 {[%clk 0:01:06]}  Rd8 {[%clk 0:00:52]} 27. Qe2 {[%clk 0:00:52]}  Rb8 {[%clk 0:00:37]} 28. Rxb8 {[%clk 0:00:49]}  Rxb8 {[%clk 0:00:36]} 29. Rc3 {[%clk 0:00:49]}  Qb4 {[%clk 0:00:32]} 30. Rc7 {[%clk 0:00:47]}  Rf8 {[%clk 0:00:29]} 31. Kh2 {[%clk 0:00:19]}  Bd8 {[%clk 0:00:27]} 32. Rc4 {[%clk 0:00:17]}  Qe7 {[%clk 0:00:27]} 33. g3 {[%clk 0:00:16]}  Bc7 {[%clk 0:00:26]} 34. Re4 {[%clk 0:00:16]}  Rd8 {[%clk 0:00:24]} 35. Re3 {[%clk 0:00:14]}  Bb6 {[%clk 0:00:20]} 36. Rf3 {[%clk 0:00:13]}  Rf8 {[%clk 0:00:20]} 37. e6 {[%clk 0:00:12]}  f5 {[%clk 0:00:18]} 38. Rd3 {[%clk 0:00:12]}  Rd8 {[%clk 0:00:17]} 39. Rxd8 {[%clk 0:00:12]}  Bxd8 {[%clk 0:00:17]} 40. Qe5+ {[%clk 0:00:12]}  Qf6 {[%clk 0:00:16]} 41. Qd5 {[%clk 0:00:11]}  Be7 {[%clk 0:00:15]} 42. Qxa5 {[%clk 0:00:11]}  Qxb2 {[%clk 0:00:15]} 43. Qc7 {[%clk 0:00:11]}  Kf6 {[%clk 0:00:13]} 44. Qc4 {[%clk 0:00:10]}  Qe5 {[%clk 0:00:12]} 45. Kg2 {[%clk 0:00:06]}  f4 {[%clk 0:00:12]} 46. gxf4 {[%clk 0:00:06]}  gxf4 {[%clk 0:00:12]} 47. Qd5 {[%clk 0:00:06]}  Qxd5+ {[%clk 0:00:11]} 48. Bxd5 {[%clk 0:00:06]}  Bb4 {[%clk 0:00:12]} 49. Bb3 {[%clk 0:00:06]}  g5 {[%clk 0:00:12]} 50. Kf3 {[%clk 0:00:07]}  Bc5 {[%clk 0:00:12]} 51. Kg4 {[%clk 0:00:07]}  Bxf2 {[%clk 0:00:12]} 52. a5 {[%clk 0:00:06]}  Ba7 {[%clk 0:00:11]} 53. Bd5 {[%clk 0:00:06]}  Bb8 {[%clk 0:00:11]} 54. a6 {[%clk 0:00:07]}  Ba7 {[%clk 0:00:11]} 55. Kf3 {[%clk 0:00:06]}  Bc5 {[%clk 0:00:12]} 56. Ke4 {[%clk 0:00:06]}  Ke7 {[%clk 0:00:12]} 57. Kd3 {[%clk 0:00:07]}  Ba7 {[%clk 0:00:12]} 58. c4 {[%clk 0:00:05]}  Kd6 {[%clk 0:00:12]} 59. Ke4 {[%clk 0:00:05]}  Ke7 {[%clk 0:00:12]} 60. Kf5 {[%clk 0:00:05]}  Be3 {[%clk 0:00:12]} 61. Bf3 {[%clk 0:00:03]}  Ba7 {[%clk 0:00:11]} 62. Kxg5 {[%clk 0:00:02]}  Kxe6 {[%clk 0:00:11]} 63. Kxf4 {[%clk 0:00:03]}  Kf6 {[%clk 0:00:12]} 64. Bd5 {[%clk 0:00:03]}  Bb8+ {[%clk 0:00:12]} 65. Kg4 {[%clk 0:00:04]}  Ba7 {[%clk 0:00:12]} 66. h4 {[%clk 0:00:05]}  Kg6 {[%clk 0:00:13]} 67. h5+ {[%clk 0:00:04]}  Kh6 {[%clk 0:00:13]} 68. Bf7 {[%clk 0:00:04]}  Kg7 {[%clk 0:00:13]} 69. Bg6 {[%clk 0:00:05]}  Kf6 {[%clk 0:00:13]} 70. Kf4 {[%clk 0:00:05]}  Bg1 {[%clk 0:00:13]} 71. Ke4 {[%clk 0:00:06]}  Ba7 {[%clk 0:00:13]} 72. Kd5 {[%clk 0:00:06]}  Ke7 {[%clk 0:00:13]} 73. Kc6 {[%clk 0:00:07]}  Kd8 {[%clk 0:00:14]} 74. Kb7 {[%clk 0:00:08]}  Be3 {[%clk 0:00:14]} 75. a7 {[%clk 0:00:09]}  Bxa7 {[%clk 0:00:13]} 76. Kxa7 {[%clk 0:00:09]}  Kc7 {[%clk 0:00:14]} 77. h6 {[%clk 0:00:10]}  Kc6 {[%clk 0:00:15]} 78. h7 {[%clk 0:00:11]}  Kc5 {[%clk 0:00:16]} 79. h8=Q {[%clk 0:00:11]} 1-0


[Site "https://www.chess.com"]

[Event "Titled Tuesday Blitz April 11 Early 2023"]
[White "Kumala, Aleksander"]
[Black "Wong, Yinn Long"]
[WhiteFideId "1141880"]
[BlackFideId "5707684"]
[WhiteElo "2269"]
[BlackElo "2271"]
[Result "0-1"]
[Round "07"]
[TimeControl "180+2"]
[Date "2023.04.11"]
[WhiteClock "0:00:06"]
[BlackClock "0:00:16"]

1. d4 {[%clk 0:02:55]}  Nf6 {[%clk 0:02:59]} 2. Bg5 {[%clk 0:02:54]}  d5 {[%clk 0:02:55]} 3. Bxf6 {[%clk 0:02:55]}  exf6 {[%clk 0:02:55]} 4. e3 {[%clk 0:02:55]}  Bd6 {[%clk 0:02:54]} 5. Bd3 {[%clk 0:02:55]}  h5 {[%clk 0:02:45]} 6. h3 {[%clk 0:02:52]}  c6 {[%clk 0:02:40]} 7. Nd2 {[%clk 0:02:52]}  h4 {[%clk 0:02:30]} 8. Qf3 {[%clk 0:02:50]}  Be6 {[%clk 0:02:27]} 9. Ne2 {[%clk 0:02:50]}  Nd7 {[%clk 0:02:21]} 10. O-O-O {[%clk 0:02:45]}  a5 {[%clk 0:02:19]} 11. Kb1 {[%clk 0:02:45]}  a4 {[%clk 0:02:19]} 12. c4 {[%clk 0:02:44]}  b5 {[%clk 0:01:49]} 13. cxd5 {[%clk 0:02:43]}  Bxd5 {[%clk 0:01:44]} 14. e4 {[%clk 0:02:39]}  Be6 {[%clk 0:01:44]} 15. d5 {[%clk 0:02:40]}  Ne5 {[%clk 0:01:42]} 16. Qe3 {[%clk 0:02:37]}  Bd7 {[%clk 0:01:28]} 17. Bc2 {[%clk 0:02:27]}  a3 {[%clk 0:01:27]} 18. f4 {[%clk 0:02:18]}  Ng6 {[%clk 0:01:15]} 19. b3 {[%clk 0:02:14]}  O-O {[%clk 0:01:07]} 20. Nf3 {[%clk 0:02:11]}  cxd5 {[%clk 0:01:00]} 21. Rxd5 {[%clk 0:02:06]}  Bc6 {[%clk 0:00:59]} 22. Rh5 {[%clk 0:02:03]}  Qe7 {[%clk 0:00:45]} 23. Nfd4 {[%clk 0:01:56]}  Bd7 {[%clk 0:00:42]} 24. Rd1 {[%clk 0:01:48]}  Rfe8 {[%clk 0:00:42]} 25. Qf3 {[%clk 0:01:44]}  Rad8 {[%clk 0:00:40]} 26. Nxb5 {[%clk 0:01:27]}  Bxb5 {[%clk 0:00:34]} 27. Rxb5 {[%clk 0:01:27]}  Qc7 {[%clk 0:00:32]} 28. Rbd5 {[%clk 0:01:13]}  Rc8 {[%clk 0:00:26]} 29. Qd3 {[%clk 0:00:58]}  Bxf4 {[%clk 0:00:26]} 30. Rd7 {[%clk 0:00:55]}  Qe5 {[%clk 0:00:27]} 31. Qd4 {[%clk 0:00:51]}  Qg5 {[%clk 0:00:25]} 32. Qd5 {[%clk 0:00:50]}  Ne5 {[%clk 0:00:23]} 33. Ra7 {[%clk 0:00:26]}  Qxg2 {[%clk 0:00:22]} 34. Re1 {[%clk 0:00:10]}  Red8 {[%clk 0:00:20]} 35. Qb7 {[%clk 0:00:09]}  Qf2 {[%clk 0:00:19]} 36. Rd1 {[%clk 0:00:05]}  Qxe2 {[%clk 0:00:15]} 37. Rxd8+ {[%clk 0:00:05]}  Rxd8 {[%clk 0:00:15]} 38. Rxa3 {[%clk 0:00:05]}  Qe1+ {[%clk 0:00:15]} 39. Kb2 {[%clk 0:00:06]}  Bc1+ {[%clk 0:00:15]} 40. Kb1 {[%clk 0:00:06]}  Bxa3+ {[%clk 0:00:16]} 41. Bd1 {[%clk 0:00:06]}  Qxd1# {[%clk 0:00:16]} 0-1


[Site "https://www.chess.com"]

[Event "Titled Tuesday Blitz April 11 Early 2023"]
[White "Odegov, Artem"]
[Black "Aradhya, Garg"]
[WhiteFideId "34183644"]
[BlackFideId "25006746"]
[WhiteElo "2300"]
[BlackElo "2263"]
[Result "1-0"]
[Round "07"]
[TimeControl "180+2"]
[Date "2023.04.11"]
[WhiteClock "0:01:12"]
[BlackClock "0:01:11"]

1. d4 {[%clk 0:03:00]}  d5 {[%clk 0:02:59]} 2. c4 {[%clk 0:03:01]}  c6 {[%clk 0:03:00]} 3. Nc3 {[%clk 0:03:01]}  Nf6 {[%clk 0:03:00]} 4. Nf3 {[%clk 0:03:01]}  dxc4 {[%clk 0:02:59]} 5. a4 {[%clk 0:03:02]}  Bf5 {[%clk 0:02:59]} 6. Ne5 {[%clk 0:03:02]}  e6 {[%clk 0:02:59]} 7. g3 {[%clk 0:02:58]}  c5 {[%clk 0:02:55]} 8. dxc5 {[%clk 0:02:53]}  Qxd1+ {[%clk 0:02:53]} 9. Nxd1 {[%clk 0:02:54]}  Bxc5 {[%clk 0:02:53]} 10. Bg2 {[%clk 0:02:54]}  Be4 {[%clk 0:02:53]} 11. f3 {[%clk 0:02:48]}  Bd5 {[%clk 0:02:52]} 12. e4 {[%clk 0:02:48]}  Nc6 {[%clk 0:02:53]} 13. Nxc6 {[%clk 0:02:24]}  Bxc6 {[%clk 0:02:52]} 14. Ne3 {[%clk 0:02:23]}  O-O-O {[%clk 0:02:17]} 15. Nxc4 {[%clk 0:02:20]}  Nd7 {[%clk 0:01:44]} 16. Bf4 {[%clk 0:02:10]}  f6 {[%clk 0:01:37]} 17. Bh3 {[%clk 0:02:00]}  e5 {[%clk 0:01:37]} 18. Be3 {[%clk 0:01:51]}  Bb4+ {[%clk 0:01:34]} 19. Ke2 {[%clk 0:01:51]}  Kc7 {[%clk 0:01:34]} 20. Rac1 {[%clk 0:01:42]}  Nc5 {[%clk 0:01:23]} 21. Bxc5 {[%clk 0:01:18]}  Bxc5 {[%clk 0:01:23]} 22. Nxe5 {[%clk 0:01:18]}  fxe5 {[%clk 0:01:19]} 23. Rxc5 {[%clk 0:01:18]}  Kd6 {[%clk 0:01:19]} 24. Rc4 {[%clk 0:01:14]}  b5 {[%clk 0:01:16]} 25. Rd1+ {[%clk 0:01:13]}  Ke7 {[%clk 0:01:11]} 26. Rxc6 {[%clk 0:01:12]} 1-0


[Site "https://www.chess.com"]

[Event "Titled Tuesday Blitz April 11 Early 2023"]
[White "Arpita, Mukherjee"]
[Black "Jaracz, Pawel"]
[WhiteFideId "5056403"]
[BlackFideId "1102222"]
[WhiteElo "2129"]
[BlackElo "2438"]
[Result "1-0"]
[Round "07"]
[TimeControl "180+2"]
[Date "2023.04.11"]
[WhiteClock "0:00:13"]
[BlackClock "0:00:10"]

1. e4 {[%clk 0:03:00]}  e5 {[%clk 0:02:57]} 2. Nf3 {[%clk 0:03:00]}  Nc6 {[%clk 0:02:57]} 3. Bb5 {[%clk 0:03:00]}  Nf6 {[%clk 0:02:57]} 4. d3 {[%clk 0:02:59]}  Bc5 {[%clk 0:02:56]} 5. c3 {[%clk 0:02:56]}  O-O {[%clk 0:02:54]} 6. Bg5 {[%clk 0:02:57]}  h6 {[%clk 0:02:51]} 7. Bh4 {[%clk 0:02:57]}  d6 {[%clk 0:02:48]} 8. h3 {[%clk 0:02:56]}  Bb6 {[%clk 0:02:41]} 9. O-O {[%clk 0:02:56]}  Kh7 {[%clk 0:02:38]} 10. Re1 {[%clk 0:02:53]}  Ne7 {[%clk 0:02:38]} 11. Bxf6 {[%clk 0:02:41]}  gxf6 {[%clk 0:02:37]} 12. Nh4 {[%clk 0:02:38]}  Rg8 {[%clk 0:02:15]} 13. Qf3 {[%clk 0:02:30]}  Ng6 {[%clk 0:02:06]} 14. Nxg6 {[%clk 0:02:27]}  fxg6 {[%clk 0:02:04]} 15. Bc4 {[%clk 0:02:25]}  Rf8 {[%clk 0:02:03]} 16. Nd2 {[%clk 0:02:24]}  f5 {[%clk 0:02:03]} 17. Rf1 {[%clk 0:02:17]}  c6 {[%clk 0:01:44]} 18. Bb3 {[%clk 0:02:12]}  Qh4 {[%clk 0:01:33]} 19. Qe2 {[%clk 0:02:00]}  Bd7 {[%clk 0:01:27]} 20. Nf3 {[%clk 0:01:50]}  Qf6 {[%clk 0:01:26]} 21. Rad1 {[%clk 0:01:46]}  Rae8 {[%clk 0:01:25]} 22. exf5 {[%clk 0:01:37]}  gxf5 {[%clk 0:01:22]} 23. Bc2 {[%clk 0:01:33]}  Bc7 {[%clk 0:01:20]} 24. Nh2 {[%clk 0:01:31]}  d5 {[%clk 0:01:18]} 25. Kh1 {[%clk 0:01:24]}  e4 {[%clk 0:01:16]} 26. dxe4 {[%clk 0:01:23]}  fxe4 {[%clk 0:01:16]} 27. f4 {[%clk 0:01:05]}  Re7 {[%clk 0:01:09]} 28. c4 {[%clk 0:01:00]}  Be6 {[%clk 0:01:03]} 29. cxd5 {[%clk 0:00:59]}  cxd5 {[%clk 0:01:03]} 30. f5 {[%clk 0:00:59]}  Bg8 {[%clk 0:01:01]} 31. Ng4 {[%clk 0:00:58]}  Qg5 {[%clk 0:00:56]} 32. f6 {[%clk 0:00:49]}  Ree8 {[%clk 0:00:54]} 33. Qb5 {[%clk 0:00:46]}  Bb8 {[%clk 0:00:35]} 34. f7 {[%clk 0:00:35]}  Bxf7 {[%clk 0:00:27]} 35. Rxf7+ {[%clk 0:00:31]}  Kh8 {[%clk 0:00:27]} 36. Qxb7 {[%clk 0:00:23]}  Qg6 {[%clk 0:00:20]} 37. Rxf8+ {[%clk 0:00:19]}  Rxf8 {[%clk 0:00:20]} 38. Qxd5 {[%clk 0:00:20]}  h5 {[%clk 0:00:20]} 39. Bxe4 {[%clk 0:00:14]}  Qe8 {[%clk 0:00:10]} 40. Qd4+ {[%clk 0:00:12]}  Kg8 {[%clk 0:00:10]} 41. Nh6# {[%clk 0:00:13]} 1-0


[Site "https://www.chess.com"]

[Event "Titled Tuesday Blitz April 11 Early 2023"]
[White "Korchmar, Vasiliy"]
[Black "Vovk, Orest"]
[WhiteFideId "24131750"]
[BlackFideId "14113490"]
[WhiteElo "2370"]
[BlackElo "2215"]
[Result "1-0"]
[Round "07"]
[TimeControl "180+2"]
[Date "2023.04.11"]
[WhiteClock "0:00:47"]
[BlackClock "0:00:41"]

1. e4 {[%clk 0:03:00]}  g5 {[%clk 0:02:59]} 2. d4 {[%clk 0:02:59]}  h6 {[%clk 0:02:58]} 3. Nc3 {[%clk 0:02:57]}  Bg7 {[%clk 0:02:58]} 4. h4 {[%clk 0:02:52]}  g4 {[%clk 0:02:58]} 5. Qxg4 {[%clk 0:02:50]}  Bxd4 {[%clk 0:02:57]} 6. Nf3 {[%clk 0:02:49]}  Nf6 {[%clk 0:02:48]} 7. Qg7 {[%clk 0:02:41]}  Rg8 {[%clk 0:02:46]} 8. Qxh6 {[%clk 0:02:41]}  Bxf2+ {[%clk 0:02:45]} 9. Kd1 {[%clk 0:02:40]}  Ng4 {[%clk 0:02:16]} 10. Qh7 {[%clk 0:02:37]}  Nf6 {[%clk 0:02:13]} 11. Qh6 {[%clk 0:02:36]}  Ng4 {[%clk 0:02:13]} 12. Qf4 {[%clk 0:02:17]}  d6 {[%clk 0:02:03]} 13. Bc4 {[%clk 0:02:02]}  f6 {[%clk 0:01:51]} 14. Bxg8 {[%clk 0:01:59]}  e5 {[%clk 0:01:43]} 15. Qd2 {[%clk 0:01:52]}  Bb6 {[%clk 0:01:38]} 16. Nd5 {[%clk 0:01:08]}  Nf2+ {[%clk 0:01:31]} 17. Ke1 {[%clk 0:01:08]}  Nxh1 {[%clk 0:01:30]} 18. Qh6 {[%clk 0:01:08]}  Kd7 {[%clk 0:01:14]} 19. Nxf6+ {[%clk 0:00:50]}  Kc6 {[%clk 0:00:56]} 20. Bd5+ {[%clk 0:00:50]}  Kb5 {[%clk 0:00:52]} 21. a4+ {[%clk 0:00:49]}  Ka6 {[%clk 0:00:41]} 22. Bc4+ {[%clk 0:00:47]} 1-0


[Site "https://www.chess.com"]

[Event "Titled Tuesday Blitz April 11 Early 2023"]
[White "Zhu, Jiner"]
[Black "Maxfan2008"]
[WhiteFideId "8608059"]
[WhiteElo "2384"]
[BlackElo "2491"]
[Result "0-1"]
[Round "07"]
[TimeControl "180+2"]
[Date "2023.04.11"]
[WhiteClock "0:00:52"]
[BlackClock "0:01:01"]

1. c4 {[%clk 0:03:00]}  c6 {[%clk 0:02:59]} 2. Nc3 {[%clk 0:02:59]}  Nf6 {[%clk 0:02:59]} 3. d4 {[%clk 0:02:59]}  d5 {[%clk 0:02:59]} 4. Nf3 {[%clk 0:03:00]}  e6 {[%clk 0:02:59]} 5. e3 {[%clk 0:02:59]}  Nbd7 {[%clk 0:02:59]} 6. Bd3 {[%clk 0:03:00]}  dxc4 {[%clk 0:03:00]} 7. Bxc4 {[%clk 0:03:01]}  b5 {[%clk 0:03:00]} 8. Bd3 {[%clk 0:03:00]}  a6 {[%clk 0:02:59]} 9. e4 {[%clk 0:02:59]}  c5 {[%clk 0:02:58]} 10. e5 {[%clk 0:02:52]}  cxd4 {[%clk 0:02:58]} 11. Nxb5 {[%clk 0:02:52]}  axb5 {[%clk 0:02:58]} 12. exf6 {[%clk 0:02:52]}  gxf6 {[%clk 0:02:59]} 13. Nxd4 {[%clk 0:02:37]}  Bb4+ {[%clk 0:02:32]} 14. Bd2 {[%clk 0:02:36]}  Qa5 {[%clk 0:02:28]} 15. Nb3 {[%clk 0:02:22]}  Bxd2+ {[%clk 0:02:23]} 16. Qxd2 {[%clk 0:02:23]}  Qb6 {[%clk 0:02:22]} 17. O-O {[%clk 0:02:20]}  Bb7 {[%clk 0:02:20]} 18. Kh1 {[%clk 0:02:18]}  Rg8 {[%clk 0:02:17]} 19. f3 {[%clk 0:02:18]}  Ne5 {[%clk 0:02:16]} 20. Qe2 {[%clk 0:02:08]}  Nxd3 {[%clk 0:02:11]} 21. Qxd3 {[%clk 0:02:09]}  Rd8 {[%clk 0:02:10]} 22. Qxh7 {[%clk 0:02:03]}  Ke7 {[%clk 0:02:11]} 23. Rac1 {[%clk 0:02:03]}  Qd6 {[%clk 0:01:59]} 24. Qc2 {[%clk 0:02:00]}  Rc8 {[%clk 0:01:54]} 25. Qd1 {[%clk 0:01:56]}  Bd5 {[%clk 0:01:53]} 26. Rxc8 {[%clk 0:01:50]}  Rxc8 {[%clk 0:01:54]} 27. Qd4 {[%clk 0:01:43]}  Rc4 {[%clk 0:01:47]} 28. Qd2 {[%clk 0:01:35]}  Rh4 {[%clk 0:01:44]} 29. h3 {[%clk 0:01:33]}  Qg3 {[%clk 0:01:35]} 30. Qf2 {[%clk 0:01:25]}  Qxf2 {[%clk 0:01:30]} 31. Rxf2 {[%clk 0:01:25]}  Bxb3 {[%clk 0:01:30]} 32. axb3 {[%clk 0:01:26]}  Rb4 {[%clk 0:01:30]} 33. Kh2 {[%clk 0:01:19]}  Rxb3 {[%clk 0:01:30]} 34. Kg3 {[%clk 0:01:20]}  e5 {[%clk 0:01:25]} 35. h4 {[%clk 0:01:17]}  f5 {[%clk 0:01:25]} 36. Rc2 {[%clk 0:01:13]}  Kf6 {[%clk 0:01:24]} 37. Rc6+ {[%clk 0:01:11]}  Kg7 {[%clk 0:01:22]} 38. Rc2 {[%clk 0:01:07]}  Kg6 {[%clk 0:01:21]} 39. Kf2 {[%clk 0:01:05]}  Kh5 {[%clk 0:01:20]} 40. Kg3 {[%clk 0:01:05]}  f6 {[%clk 0:01:17]} 41. Rc6 {[%clk 0:01:01]}  Kg6 {[%clk 0:01:07]} 42. Rc2 {[%clk 0:00:59]}  Rb4 {[%clk 0:01:05]} 43. Kh3 {[%clk 0:00:58]}  Kh5 {[%clk 0:01:04]} 44. Rc6 {[%clk 0:00:56]}  Rxh4+ {[%clk 0:01:02]} 45. Kg3 {[%clk 0:00:55]}  Kg5 {[%clk 0:01:01]} 46. Rxf6 {[%clk 0:00:52]}  f4+ {[%clk 0:01:01]} 47. Kf2 {[%clk 0:00:52]}  Kxf6 {[%clk 0:01:01]} 0-1


[Site "https://www.chess.com"]

[Event "Titled Tuesday Blitz April 11 Early 2023"]
[White "Leyva Rivera, Yunier"]
[Black "Rendle, Thomas E"]
[WhiteFideId "3505065"]
[BlackFideId "408760"]
[WhiteElo "2430"]
[BlackElo "2428"]
[Result "1/2-1/2"]
[Round "07"]
[TimeControl "180+2"]
[Date "2023.04.11"]
[WhiteClock "0:00:13"]
[BlackClock "0:00:39"]

1. d4 {[%clk 0:03:00]}  Nf6 {[%clk 0:02:58]} 2. Nf3 {[%clk 0:03:00]}  g6 {[%clk 0:02:58]} 3. g3 {[%clk 0:03:00]}  Bg7 {[%clk 0:02:59]} 4. Bg2 {[%clk 0:03:01]}  O-O {[%clk 0:02:59]} 5. O-O {[%clk 0:03:01]}  d6 {[%clk 0:02:57]} 6. b3 {[%clk 0:03:02]}  a5 {[%clk 0:02:56]} 7. a4 {[%clk 0:02:59]}  c6 {[%clk 0:02:54]} 8. Nbd2 {[%clk 0:02:57]}  Bf5 {[%clk 0:02:46]} 9. Bb2 {[%clk 0:02:48]}  Na6 {[%clk 0:02:43]} 10. Nh4 {[%clk 0:02:47]}  Bc8 {[%clk 0:02:41]} 11. e4 {[%clk 0:02:46]}  Nd7 {[%clk 0:02:32]} 12. Nhf3 {[%clk 0:02:38]}  Qc7 {[%clk 0:02:24]} 13. Re1 {[%clk 0:02:36]}  b6 {[%clk 0:02:21]} 14. Qe2 {[%clk 0:01:39]}  Nb4 {[%clk 0:02:18]} 15. Rac1 {[%clk 0:01:38]}  Ba6 {[%clk 0:02:17]} 16. Qe3 {[%clk 0:01:39]}  c5 {[%clk 0:02:11]} 17. c4 {[%clk 0:01:27]}  cxd4 {[%clk 0:02:01]} 18. Bxd4 {[%clk 0:01:26]}  Bxd4 {[%clk 0:01:56]} 19. Nxd4 {[%clk 0:01:25]}  Qc5 {[%clk 0:01:51]} 20. N2f3 {[%clk 0:01:10]}  Rac8 {[%clk 0:01:43]} 21. Red1 {[%clk 0:00:32]}  Qh5 {[%clk 0:01:35]} 22. h3 {[%clk 0:00:27]}  Rfe8 {[%clk 0:01:04]} 23. g4 {[%clk 0:00:20]}  Qc5 {[%clk 0:01:05]} 24. Qh6 {[%clk 0:00:18]}  Nf8 {[%clk 0:01:05]} 25. Ng5 {[%clk 0:00:14]}  Qe5 {[%clk 0:01:04]} 26. Ne2 {[%clk 0:00:11]}  f6 {[%clk 0:00:55]} 27. Nf3 {[%clk 0:00:11]}  Qb2 {[%clk 0:00:52]} 28. Ned4 {[%clk 0:00:11]}  Bb7 {[%clk 0:00:44]} 29. Rb1 {[%clk 0:00:12]}  Qa2 {[%clk 0:00:37]} 30. Ra1 {[%clk 0:00:12]}  Qb2 {[%clk 0:00:38]} 31. Rab1 {[%clk 0:00:12]}  Qa2 {[%clk 0:00:38]} 32. Ra1 {[%clk 0:00:12]}  Qb2 {[%clk 0:00:39]} 33. Rab1 {[%clk 0:00:13]} 1/2-1/2


[Site "https://www.chess.com"]

[Event "Titled Tuesday Blitz April 11 Early 2023"]
[White "De Souza, Cristiano Gomes"]
[Black "Vysochin, Spartak"]
[WhiteFideId "2151758"]
[BlackFideId "14103516"]
[WhiteElo "2068"]
[BlackElo "2367"]
[Result "0-1"]
[Round "07"]
[TimeControl "180+2"]
[Date "2023.04.11"]
[WhiteClock "0:00:15"]
[BlackClock "0:00:25"]

1. d4 {[%clk 0:02:59]}  d5 {[%clk 0:02:57]} 2. c4 {[%clk 0:02:57]}  e6 {[%clk 0:02:57]} 3. Nf3 {[%clk 0:02:58]}  Nf6 {[%clk 0:02:53]} 4. Nc3 {[%clk 0:02:55]}  c5 {[%clk 0:02:53]} 5. cxd5 {[%clk 0:02:49]}  cxd4 {[%clk 0:02:52]} 6. Qxd4 {[%clk 0:02:47]}  exd5 {[%clk 0:02:51]} 7. Bg5 {[%clk 0:02:46]}  Be7 {[%clk 0:02:40]} 8. e3 {[%clk 0:02:45]}  Nc6 {[%clk 0:02:39]} 9. Bb5 {[%clk 0:02:42]}  O-O {[%clk 0:02:37]} 10. Bxc6 {[%clk 0:02:40]}  bxc6 {[%clk 0:02:37]} 11. O-O {[%clk 0:02:40]}  h6 {[%clk 0:02:34]} 12. Bh4 {[%clk 0:02:39]}  c5 {[%clk 0:02:26]} 13. Qd2 {[%clk 0:02:34]}  Bb7 {[%clk 0:01:59]} 14. Rfd1 {[%clk 0:02:33]}  g5 {[%clk 0:01:59]} 15. Bg3 {[%clk 0:02:32]}  Qb6 {[%clk 0:01:50]} 16. Rac1 {[%clk 0:02:28]}  Rfd8 {[%clk 0:01:45]} 17. Na4 {[%clk 0:02:18]}  Qb5 {[%clk 0:01:41]} 18. b3 {[%clk 0:02:10]}  Rac8 {[%clk 0:01:40]} 19. Be5 {[%clk 0:02:08]}  Ne4 {[%clk 0:01:34]} 20. Qb2 {[%clk 0:02:02]}  Qd7 {[%clk 0:01:20]} 21. Nd2 {[%clk 0:01:47]}  Qf5 {[%clk 0:01:17]} 22. Nxe4 {[%clk 0:01:43]}  Qxe4 {[%clk 0:01:18]} 23. Bh8 {[%clk 0:01:20]}  f6 {[%clk 0:01:15]} 24. Bxf6 {[%clk 0:01:18]}  d4 {[%clk 0:01:15]} 25. f3 {[%clk 0:01:02]}  Qxe3+ {[%clk 0:01:14]} 26. Kh1 {[%clk 0:01:03]}  Bxf6 {[%clk 0:01:14]} 27. Nxc5 {[%clk 0:01:02]}  Bd5 {[%clk 0:01:04]} 28. Re1 {[%clk 0:01:00]}  Qf4 {[%clk 0:00:59]} 29. Nd3 {[%clk 0:00:53]}  Qd6 {[%clk 0:00:57]} 30. Qd2 {[%clk 0:00:47]}  Rxc1 {[%clk 0:00:53]} 31. Rxc1 {[%clk 0:00:46]}  Bf7 {[%clk 0:00:52]} 32. h4 {[%clk 0:00:44]}  Bg6 {[%clk 0:00:50]} 33. Nf2 {[%clk 0:00:42]}  Qf4 {[%clk 0:00:35]} 34. Qxf4 {[%clk 0:00:33]}  gxf4 {[%clk 0:00:35]} 35. Rc6 {[%clk 0:00:30]}  Kg7 {[%clk 0:00:29]} 36. Ng4 {[%clk 0:00:30]}  d3 {[%clk 0:00:29]} 37. Nxf6 {[%clk 0:00:17]}  d2 {[%clk 0:00:28]} 38. h5 {[%clk 0:00:16]}  d1=Q+ {[%clk 0:00:28]} 39. Kh2 {[%clk 0:00:16]}  Rd6 {[%clk 0:00:27]} 40. Rxd6 {[%clk 0:00:15]}  Qxd6 {[%clk 0:00:25]} 41. Ng4 {[%clk 0:00:15]}  Bxh5 {[%clk 0:00:25]} 0-1


[Site "https://www.chess.com"]